bitfinex-derivatives/quotes_ETHF0:USTF0_20250114
["timestamp","ask_amount","ask_price","bid_price","bid_amount"]
[1736849219791,0.30889,3237.8,3237.7,40.8]
[1736849220183,1.2521,3238.1,3237.7,40.8]
[1736849220391,1.56097,3238.1,3237.8,0.30889]
[1736849220682,1.2521,3238.1,3238.0,0.30887]
[1736849220887,1.2521,3238.1,3237.7,40.8]
[1736849220888,1.2836,3238.3,3237.8,3.2078]
[1736849221080,0.77201,3238.8,3237.7,43.73425598]
[1736849221081,1.2384,3238.8,3238.2,3.2078]
[1736849221279,0.30879,3238.9,3238.4,2.93425598]
[1736849221483,0.3088,3238.8,3238.6,0.30881]
[1736849221685,0.3088,3238.8,3238.7,40.8]
[1736849221890,2.4768,3239.1,3238.7,40.8]
[1736849222092,0.3088,3238.8,3238.7,40.8]
[1736849224086,3.5166,3238.8,3238.7,40.8]
[1736849224589,0.30888,3237.9,3237.8,3.2078]
[1736849224997,0.30888,3237.9,3237.8,44.0078]
[1736849226291,4.11667,3238.1,3237.8,44.0078]
[1736849226490,3.2078,3238.7,3237.8,46.94205598]
[1736849226697,3.2078,3238.7,3238.2,3.2078]
[1736849226698,1.2622,3238.7,3238.2,3.2078]
[1736849226901,1.57101,3238.7,3238.4,0.30883]
[1736849227091,1.2622,3238.7,3238.2,3.2078]
[1736849227286,0.30884,3238.4,3238.2,3.2078]
[1736849227695,1.2622,3238.7,3238.1,3.2078]
[1736849227893,0.30883,3238.5,3238.2,0.30885]
[1736849228401,1.2622,3238.7,3238.1,3.2078]
[1736849228594,0.30885,3238.2,3238.1,3.2078]
[1736849228793,0.30885,3238.2,3237.9,2.5126]
[1736849228794,0.30887,3238.0,3237.9,1.2509]
[1736849228989,0.30886,3238.2,3237.9,1.2509]
[1736849229190,0.30886,3238.1,3237.9,1.2509]
[1736849229390,2.02059,3238.5,3237.9,1.2509]
[1736849229592,0.30887,3238.0,3237.9,1.2509]
[1736849229903,0.30888,3237.9,3237.8,40.8]
[1736849231394,3.51668,3237.9,3237.8,40.8]
[1736849231600,0.30895,3237.2,3237.1,3.2078]
[1736849231794,0.30899,3236.8,3236.7,3.2078]
[1736849232500,0.30899,3236.8,3236.7,44.0078]
[1736849235096,0.7724,3237.2,3236.7,44.0078]
[1736849235304,0.7724,3237.2,3235.7,1.1985]
[1736849235305,0.77253,3236.6,3235.6,3.2078]
[1736849235497,2.93425598,3237.0,3235.6,3.2078]
[1736849235498,3.2078,3236.3,3235.6,3.2078]
[1736849235707,0.30909,3235.8,3235.6,3.2078]
[1736849236303,0.30905,3236.2,3235.7,40.8]
[1736849236600,0.30908,3235.8,3235.7,40.8]
[1736849238404,1.62488,3235.8,3235.7,40.8]
[1736849239603,0.30905,3236.2,3235.8,0.30908]
[1736849239799,3.51684,3236.3,3235.7,40.8]
[1736849240099,3.51684,3236.3,3236.0,0.30906]
[1736849240100,3.2078,3236.3,3236.0,0.30906]
[1736849240404,0.30905,3236.2,3235.8,2.78178]
[1736849240598,3.2078,3236.3,3235.8,2.4727]
[1736849241300,3.2078,3236.3,3235.9,0.30907]
[1736849241806,3.51684,3236.3,3236.2,40.8]
[1736849242007,3.2078,3236.3,3236.2,40.8]
[1736849242401,1.2342,3236.6,3236.2,40.8]
[1736849242609,0.30904,3236.3,3236.2,40.8]
[1736849245901,0.30904,3236.3,3229.1,0.12837182]
[1736849245902,1.54525,3236.2,3234.8,3.2078]
[1736849246103,3.2078,3235.6,3234.8,3.2078]
[1736849246409,0.30913,3235.4,3234.9,1.2421]
[1736849246711,0.30913,3235.4,3234.9,2.4331]
[1736849247012,3.2078,3235.6,3235.3,40.8]
[1736849247207,0.30912,3235.4,3235.3,40.8]
[1736849247713,3.2078,3235.6,3235.3,40.8]
[1736849247908,3.2078,3235.6,3235.4,0.30912]
[1736849248405,3.2078,3235.6,3235.5,1.3169]
[1736849248608,3.5169,3235.6,3235.5,1.3169]
[1736849248808,3.2078,3235.6,3235.1,0.30915]
[1736849249009,3.5169,3235.6,3235.5,40.8]
[1736849249815,0.30909,3235.7,3235.5,41.10911]
[1736849250012,0.30909,3235.7,3235.6,1.3169]
[1736849251314,0.3091,3235.6,3235.5,40.8]
[1736849251912,0.3091,3235.6,3235.5,40.7]
[1736849254818,0.3091,3235.7,3235.5,40.7]
[1736849255013,0.30911,3235.6,3235.4,0.30912]
[1736849255322,3.2078,3236.0,3235.3,1.2408]
[1736849255618,0.3091,3235.6,3235.5,40.8]
[1736849256212,3.24335598,3235.6,3235.5,40.8]
[1736849256417,6.45115598,3235.6,3235.5,40.8]
[1736849258321,0.3092,3234.6,3234.4,0.30921]
[1736849258516,0.77283,3235.4,3234.4,0.30921]
[1736849258517,0.30921,3234.5,3234.4,1.2651]
[1736849258718,0.77293,3234.9,3234.3,4.5149]
[1736849258919,0.30921,3234.5,3234.3,4.82412]
[1736849259417,1.253,3234.9,3234.4,40.8]
[1736849259621,0.3092,3234.6,3234.5,0.3092]
[1736849260317,3.98072,3235.0,3234.4,40.8]
[1736849260511,0.30921,3234.5,3234.4,40.8]
[1736849260819,0.30921,3234.5,3234.4,41.10922]
[1736849261314,0.3092,3234.6,3234.5,0.30919]
[1736849262017,0.3092,3234.6,3234.5,41.10919]
[1736849264719,0.77292,3235.0,3234.5,40.8]
[1736849264920,3.2078,3235.1,3234.5,40.8]
[1736849265121,0.30918,3234.9,3234.8,0.30917]
[1736849265921,0.30918,3234.9,3234.8,41.10917]
[1736849267726,0.30915,3235.2,3235.1,0.30914]
[1736849267925,3.2078,3235.5,3235.4,0.30912]
[1736849268119,3.51691,3235.5,3235.4,0.30912]
[1736849268318,3.51691,3235.5,3235.4,41.10912]
[1736849268319,3.2078,3235.5,3235.4,41.10912]
[1736849268722,0.30911,3235.6,3235.4,40.8]
[1736849268924,0.30911,3235.6,3235.5,0.30911]
[1736849269221,0.30911,3235.5,3235.4,41.10911]
[1736849269527,0.30911,3235.5,3235.4,40.8]
[1736849269723,0.30911,3235.5,3235.4,41.10912]
[1736849269924,0.30911,3235.5,3235.4,40.8]
[1736849273119,3.24336598,3235.5,3235.4,40.8]
[1736849274329,3.24336598,3235.5,3234.5,4.5568]
[1736849274330,2.93425598,3235.5,3234.5,3.2078]
[1736849274535,6.14205598,3235.2,3234.5,3.2078]
[1736849274731,0.30916,3235.0,3234.8,0.30917]
[1736849274926,0.30916,3235.0,3234.9,40.8]
[1736849275427,2.7343336,3235.0,3234.9,40.8]
[1736849275823,3.9269336,3235.0,3234.9,40.8]
[1736849276425,1.1926,3235.0,3234.9,41.10917]
[1736849276726,3.2078,3235.2,3234.9,40.8]
[1736849276924,3.2078,3235.2,3235.1,0.30915]
[1736849277525,4.8602736,3235.6,3235.1,41.10915]
[1736849277726,0.30913,3235.4,3235.3,0.30912]
[1736849277925,0.30913,3235.4,3235.0,1.2071]
[1736849278125,4.8602736,3235.6,3235.0,1.2071]
[1736849278521,2.4251736,3235.3,3235.0,1.2071]
[1736849278726,2.4251736,3235.3,3235.2,0.30914]
[1736849278927,2.4251736,3235.3,3235.2,41.10914]
[1736849279131,2.7343036,3235.3,3235.2,40.8]
[1736849279334,3.2078,3235.7,3235.2,40.8]
[1736849279633,0.30912,3235.5,3235.4,0.30911]
[1736849279831,2.93762095,3235.6,3235.2,40.8]
[1736849280131,4.14092095,3235.6,3235.2,40.8]
[1736849280436,0.30913,3235.3,3235.2,40.8]
[1736849280631,0.30915,3235.1,3235.0,0.30915]
[1736849281222,0.30915,3235.2,3235.1,0.30915]
[1736849281632,0.30915,3235.2,3235.1,40.8]
[1736849281832,0.30915,3235.2,3235.1,41.10915]
[1736849282537,0.30915,3235.2,3235.1,40.8]
[1736849283433,0.30914,3235.2,3235.1,40.8]
[1736849283629,3.51694,3235.2,3235.1,40.8]
[1736849283833,3.2078,3235.2,3235.1,40.8]
[1736849284234,3.2078,3235.2,3235.1,41.10915]
[1736849284432,3.2078,3235.2,3235.1,40.8]
[1736849284734,3.2078,3235.2,3235.1,41.10915]
[1736849287332,3.2078,3235.2,3235.1,40.8]
[1736849287527,3.51694,3235.2,3235.1,40.8]
[1736849287727,3.2078,3235.2,3235.1,40.8]
[1736849287931,3.2078,3235.2,3235.1,41.10915]
[1736849289528,3.2078,3235.7,3235.6,0.3091]
[1736849289730,1.54467,3237.5,3236.4,0.30903]
[1736849289731,4.66262,3236.5,3236.4,0.30903]
[1736849290032,4.66262,3236.5,3236.4,0.18687451]
[1736849290532,4.66262,3236.5,3236.4,40.98687451]
[1736849290734,3.2078,3236.5,3236.4,40.98687451]
[1736849291138,3.2078,3236.5,3236.4,40.8]
[1736849291432,3.51682,3236.5,3236.4,40.8]
[1736849291944,0.30908,3235.8,3235.5,0.30911]
[1736849292133,0.30915,3235.2,3234.9,0.30916]
[1736849292332,0.77276,3235.7,3234.9,0.30916]
[1736849292333,3.2078,3235.4,3234.9,0.30916]
[1736849292537,0.30915,3235.1,3235.0,40.8]
[1736849298634,0.30924,3234.2,3233.9,2.4388]
[1736849298830,3.2078,3234.6,3233.9,2.4388]
[1736849299236,3.2078,3234.6,3234.0,0.30926]
[1736849299442,0.30924,3234.2,3233.9,1.55836]
[1736849299635,0.30924,3234.2,3234.1,40.8]
[1736849300841,3.51704,3234.2,3234.1,40.8]
[1736849301234,0.30921,3234.5,3234.1,40.8]
[1736849301439,3.2078,3234.6,3234.2,0.30923]
[1736849302042,0.30922,3234.4,3234.1,41.10924]
[1736849302438,0.30922,3234.4,3234.1,40.8]
[1736849302844,0.30921,3234.5,3234.1,40.8]
[1736849303045,0.30921,3234.5,3234.1,41.10924]
[1736849303247,0.30921,3234.5,3234.2,0.30924]
[1736849303541,0.30921,3234.5,3234.2,0.30923]
[1736849303948,3.2078,3234.6,3234.1,40.8]
[1736849304246,3.2078,3234.6,3234.4,0.30921]
[1736849304446,0.30921,3234.5,3234.3,0.30922]
[1736849304749,0.30922,3234.4,3234.2,2.67794]
[1736849304949,3.2078,3234.6,3234.1,0.30925]
[1736849305243,3.517,3234.6,3234.5,40.8]
[1736849305451,3.2078,3234.6,3233.8,2.3378]
[1736849305654,0.30924,3234.2,3233.9,0.30926]
[1736849305837,3.2078,3234.6,3233.8,2.3378]
[1736849306038,0.30927,3233.9,3233.7,3.51708]
[1736849306348,0.30928,3233.8,3233.7,0.30928]
[1736849306540,0.30926,3234.0,3233.9,0.30926]
[1736849306849,0.30926,3234.0,3233.9,41.10926]
[1736849307245,0.30926,3234.0,3233.9,40.8]
[1736849307649,0.30925,3234.1,3234.0,0.30925]
[1736849308045,1.174,3234.3,3233.9,40.8]
[1736849308347,0.30926,3234.0,3233.9,41.10926]
[1736849308646,3.2078,3234.6,3233.9,40.8]
[1736849308842,6.14542095,3234.6,3233.9,40.8]
[1736849309045,0.77303,3234.5,3233.9,40.8]
[1736849309242,0.30926,3234.0,3233.9,41.10926]
[1736849309442,0.30926,3234.0,3233.9,40.8]
[1736849310847,0.30926,3234.0,3233.9,41.10927]
[1736849311048,0.30926,3234.0,3233.9,40.8]
[1736849311450,0.30926,3234.0,3233.9,41.10927]
[1736849311648,2.4192,3234.1,3233.9,40.8]
[1736849311844,0.30924,3234.2,3234.1,0.30924]
[1736849312446,0.30924,3234.2,3234.1,41.10924]
[1736849313348,0.30924,3234.2,3234.1,40.8]
[1736849313755,0.30924,3234.2,3234.1,41.10925]
[1736849314655,2.3631,3234.5,3234.1,40.8]
[1736849314859,2.3631,3234.5,3234.2,0.30923]
[1736849314860,0.30923,3234.3,3234.2,0.30923]
[1736849315150,2.3631,3234.5,3234.3,0.30922]
[1736849315151,0.30922,3234.4,3234.3,0.30922]
[1736849315757,3.2078,3235.0,3234.6,0.3092]
[1736849316060,2.42572457,3234.8,3234.3,0.30922]
[1736849316252,0.30923,3234.3,3234.2,0.30923]
[1736849316445,0.30921,3234.5,3234.3,0.30922]
[1736849316645,3.2078,3234.6,3234.1,40.8]
[1736849316859,3.517,3234.6,3234.1,40.8]
[1736849317158,3.2078,3234.6,3234.5,0.30921]
[1736849317861,3.2078,3234.6,3234.5,41.10921]
[1736849319153,3.517,3234.6,3234.5,41.10921]
[1736849319648,3.2078,3234.6,3234.5,41.10921]
[1736849319846,3.2078,3234.6,3234.5,40.8]
[1736849320053,3.517,3234.6,3234.5,40.8]
[1736849321261,5.94272457,3234.6,3234.5,40.8]
[1736849321461,0.30924,3234.2,3234.1,0.30924]
[1736849321861,0.77304,3234.5,3233.6,2.42572457]
[1736849322053,3.6249,3234.1,3233.6,2.42572457]
[1736849322250,3.93415,3234.1,3233.6,2.42572457]
[1736849322455,3.93415,3234.1,3234.0,40.8]
[1736849325650,3.6249,3234.1,3234.0,40.8]
[1736849326161,3.93415,3234.1,3234.0,40.8]
[1736849329063,3.2078,3234.2,3234.0,40.8]
[1736849329562,3.2078,3234.2,3234.1,0.30925]
[1736849330164,3.2078,3234.2,3234.0,40.8]
[1736849330462,3.2078,3234.2,3234.0,41.10925]
[1736849330766,3.2078,3234.2,3234.1,0.30925]
[1736849331060,3.5501,3234.4,3234.0,40.8]
[1736849331269,3.2078,3234.2,3234.0,41.10925]
[1736849331455,3.51704,3234.2,3234.0,41.10925]
[1736849331868,3.2078,3234.2,3234.0,41.10925]
[1736849332166,3.51704,3234.2,3234.0,41.10925]
[1736849332867,0.30925,3234.1,3234.0,40.8]
[1736849333164,3.2078,3234.2,3234.0,40.8]
[1736849333360,3.51704,3234.2,3234.0,41.10925]
[1736849333561,3.2078,3234.2,3234.0,40.8]
[1736849333862,3.51704,3234.2,3234.1,0.30925]
[1736849334263,3.2078,3234.2,3234.1,0.30925]
[1736849334461,3.5501,3234.4,3234.1,0.30925]
[1736849334659,3.5501,3234.4,3234.3,0.30923]
[1736849334863,2.3625,3234.4,3234.3,0.30923]
[1736849336171,3.2078,3234.6,3234.5,0.30921]
[1736849336371,3.2078,3234.6,3234.5,41.10921]
[1736849336773,3.517,3234.6,3234.5,40.8]
[1736849337970,3.2078,3234.6,3234.2,0.30923]
[1736849338167,0.30923,3234.3,3234.2,0.30923]
[1736849338372,0.30922,3234.4,3234.3,0.30922]
[1736849338567,3.2078,3234.6,3233.8,6.45729]
[1736849338867,3.2078,3234.6,3234.0,2.42572457]
[1736849339165,3.2078,3234.6,3234.5,41.10921]
[1736849339373,3.517,3234.6,3234.5,40.8]
[1736849340371,5.94272457,3234.6,3234.5,40.8]
[1736849343174,3.2078,3234.6,3234.5,40.8]
[1736849343366,3.2078,3234.6,3234.5,41.10921]
[1736849346373,3.517,3234.6,3234.5,41.10921]
[1736849346574,3.2078,3234.6,3234.5,41.10921]
[1736849347673,3.2078,3234.6,3234.5,40.8]
[1736849348271,3.2078,3234.6,3234.5,41.10921]
[1736849348472,3.517,3234.6,3234.5,41.10921]
[1736849348872,3.517,3234.6,3234.5,40.8]
[1736849349073,3.517,3234.6,3234.1,0.30925]
[1736849349275,3.517,3234.6,3234.3,0.30922]
[1736849349276,0.30921,3234.5,3234.3,0.30922]
[1736849349478,3.517,3234.6,3234.4,0.30921]
[1736849349880,3.517,3234.6,3234.0,2.42572457]
[1736849350077,3.517,3234.6,3234.5,41.10921]
[1736849350272,3.517,3234.6,3234.5,40.8]
[1736849350477,3.517,3234.6,3234.5,41.10921]
[1736849350779,3.2078,3235.1,3235.0,0.30916]
[1736849351276,3.2078,3235.1,3234.8,2.73928]
[1736849351473,0.30919,3234.8,3234.5,40.8]
[1736849351678,0.30919,3234.7,3234.6,0.30919]
[1736849351875,3.5536,3235.0,3234.6,0.3092]
[1736849352378,3.5536,3235.0,3234.5,40.8]
[1736849352880,4.32652,3235.0,3234.5,41.1092]
[1736849353178,3.5536,3235.0,3234.5,40.8]
[1736849353373,0.30919,3234.7,3234.6,0.30919]
[1736849353782,3.5536,3235.0,3234.5,40.8]
[1736849353973,0.30917,3234.9,3234.8,0.30918]
[1736849354168,3.86277,3235.0,3234.9,0.30917]
[1736849354876,3.86277,3235.0,3234.5,41.57301]
[1736849354877,3.2078,3235.1,3235.0,0.30916]
[1736849355078,3.51695,3235.1,3235.0,0.30916]
[1736849356472,3.2078,3235.1,3234.5,41.57301]
[1736849356673,3.51696,3235.1,3234.9,0.30917]
[1736849357179,0.30916,3235.0,3234.9,0.30917]
[1736849357372,3.2078,3235.1,3234.5,0.77301]
[1736849357575,0.30918,3234.9,3234.8,0.30918]
[1736849357774,3.2078,3235.1,3234.4,5.63352457]
[1736849358072,0.3092,3234.6,3234.5,0.3092]
[1736849358674,0.30925,3234.2,3234.1,0.30924]
[1736849358875,0.30926,3234.0,3233.9,0.30926]
[1736849359075,0.77305,3234.4,3233.7,0.30928]
[1736849359076,0.30927,3233.9,3233.7,0.30928]
[1736849359270,1.1695,3234.1,3233.6,1.1686]
[1736849359473,0.30927,3233.9,3233.8,0.30927]
[1736849359673,2.73216,3234.0,3233.9,0.30927]
[1736849359875,1.1695,3234.1,3233.8,40.8]
[1736849360081,1.1695,3234.1,3234.0,0.30926]
[1736849360278,3.2078,3235.0,3233.8,44.57272457]
[1736849360485,1.1935,3234.9,3234.6,0.30919]
[1736849360675,0.30921,3234.5,3234.4,1.14]
[1736849360979,0.30921,3234.5,3234.4,1.44921]
[1736849361677,0.3092,3234.6,3234.5,0.30921]
[1736849361876,1.1935,3234.9,3234.4,41.94]
[1736849362183,0.30921,3234.6,3234.5,0.30921]
[1736849362384,0.30921,3234.6,3234.4,42.24921]
[1736849362576,0.30921,3234.6,3234.4,41.10921]
[1736849362776,0.30921,3234.6,3234.4,40.8]
[1736849362979,0.3092,3234.6,3234.5,0.3092]
[1736849363284,1.1935,3234.9,3234.5,0.30921]
[1736849363680,0.30921,3234.6,3234.4,41.10921]
[1736849363879,0.30921,3234.5,3234.4,40.8]
[1736849364084,0.30921,3234.5,3234.4,41.10922]
[1736849364387,3.51701,3234.6,3234.4,41.10922]
[1736849364683,0.30921,3234.5,3234.4,41.10922]
[1736849364882,0.30921,3234.5,3234.4,40.8]
[1736849365083,0.30921,3234.5,3234.4,41.10922]
[1736849365383,3.2078,3234.6,3234.2,0.30923]
[1736849365580,0.30925,3234.1,3233.7,3.2078]
[1736849365885,1.2098,3234.0,3233.9,0.30926]
[1736849366394,1.2098,3234.0,3233.9,41.10926]
[1736849366776,1.51906,3234.0,3233.9,40.8]
[1736849367279,1.51906,3234.0,3233.3,3.2078]
[1736849367280,0.30932,3233.4,3233.0,0.30935]
[1736849367481,2.42572457,3234.1,3232.9,3.2078]
[1736849367482,3.5564,3233.3,3232.9,3.2078]
[1736849367684,3.5564,3233.3,3232.3,3.2078]
[1736849367685,3.2078,3233.1,3232.3,3.2078]
[1736849368185,0.30938,3232.7,3232.4,0.3094]
[1736849368390,0.30939,3232.6,3232.5,0.3114]
[1736849368690,0.30935,3233.0,3232.5,0.3114]
[1736849368889,3.2078,3233.1,3232.5,0.3114]
[1736849368890,0.30939,3232.7,3232.5,0.3114]
[1736849369185,2.42572457,3233.0,3232.5,0.002]
[1736849369392,0.30939,3232.6,3232.5,0.002]
[1736849369587,0.30939,3232.6,3232.5,40.802]
[1736849369892,0.30939,3232.7,3232.5,41.11139]
[1736849370077,0.30939,3232.7,3232.5,40.802]
[1736849371189,0.30939,3232.6,3232.5,40.802]
[1736849371385,2.68309,3232.6,3232.5,40.802]
[1736849372083,5.89089,3232.6,3232.5,40.802]
[1736849372589,7.05609,3232.6,3232.5,40.802]
[1736849373789,7.05609,3232.6,3232.5,41.1114]
[1736849373790,6.7467,3232.6,3232.5,41.1114]
[1736849373995,3.2078,3232.6,3232.5,40.802]
[1736849375091,3.2078,3233.0,3232.9,0.30936]
[1736849375603,3.2078,3233.0,3232.6,1.1351]
[1736849375888,3.2078,3233.5,3233.4,0.30931]
[1736849376088,3.2078,3233.9,3233.2,2.42572457]
[1736849376283,1.1572,3234.1,3233.3,1.1351]
[1736849376486,1.46645,3234.1,3234.0,40.8]
[1736849376691,1.1572,3234.1,3234.0,40.8]
[1736849377091,1.46645,3234.1,3234.0,40.8]
[1736849377687,1.2518,3234.2,3234.0,40.8]
[1736849377892,3.67752457,3234.2,3234.0,40.8]
[1736849378092,0.30925,3234.1,3234.0,40.8]
[1736849378488,1.47475,3234.1,3234.0,40.8]
[1736849380493,1.47186968,3234.1,3234.0,40.8]
[1736849382598,1.74815621,3234.1,3234.0,40.8]
[1736849382899,6.44178653,3234.1,3232.6,3.2078]
[1736849383086,0.30939,3232.6,3232.5,0.002]
[1736849383291,0.30939,3232.6,3232.5,40.802]
[1736849392803,2.4277,3232.8,3232.5,40.802]
[1736849393002,2.4277,3232.8,3232.5,0.002]
[1736849393203,3.2078,3232.9,3232.8,0.30937]
[1736849393400,3.2078,3232.9,3232.8,41.10937]
[1736849393607,3.2078,3233.4,3232.8,40.8]
[1736849393815,3.9811,3233.4,3232.8,40.8]
[1736849394004,0.30936,3232.9,3232.8,40.8]
[1736849394503,0.30938,3232.8,3232.6,1.1712]
[1736849395005,0.30939,3232.6,3232.5,0.002]
[1736849395410,0.30939,3232.6,3232.5,40.802]
[1736849395895,1.97414,3233.2,3232.5,41.1114]
[1736849395896,0.30938,3232.7,3232.5,41.1114]
[1736849396095,1.2008,3233.2,3232.5,40.802]
[1736849396296,0.30936,3233.0,3232.5,40.802]
[1736849396504,0.30936,3233.0,3232.7,0.30937]
[1736849396698,0.30936,3232.9,3232.7,0.30937]
[1736849396899,1.2008,3233.2,3232.5,40.802]
[1736849397101,0.30939,3232.7,3232.5,41.1114]
[1736849397303,0.30939,3232.6,3232.5,40.802]
[1736849397504,0.30945,3232.0,3231.9,3.2078]
[1736849398206,0.30945,3232.0,3231.9,44.0078]
[1736849398412,0.30945,3232.0,3231.9,40.8]
[1736849399207,0.3095,3231.5,3231.4,3.2078]
[1736849399912,3.2078,3231.5,3230.4,2.5222]
[1736849400104,0.30955,3230.9,3230.6,0.30958]
[1736849400304,1.199,3231.4,3230.5,3.2078]
[1736849400605,1.199,3231.4,3230.5,3.51738]
[1736849400606,0.30956,3230.9,3230.5,3.51738]
[1736849400811,0.30954,3231.1,3230.7,0.30956]
[1736849401004,1.199,3231.4,3230.6,2.94299722]
[1736849401319,3.2078,3231.5,3231.1,0.30953]
[1736849401514,0.30951,3231.4,3231.1,0.30953]
[1736849402013,3.2078,3231.5,3231.2,0.30952]
[1736849402205,1.1487,3231.7,3231.2,0.30952]
[1736849402401,0.3095,3231.5,3231.1,1.56643]
[1736849402709,0.30947,3231.8,3231.5,0.30949]
[1736849402899,0.30949,3231.6,3231.3,0.30951]
[1736849403104,0.3095,3231.5,3231.2,1.49032]
[1736849403306,1.50846,3231.9,3231.5,0.30949]
[1736849403505,3.2078,3232.1,3231.4,3.2078]
[1736849403708,0.30947,3231.8,3231.4,3.5173]
[1736849403907,0.3095,3231.5,3231.2,1.49032]
[1736849404113,6.15079722,3231.7,3231.0,3.2078]
[1736849404312,1.2182,3231.4,3231.0,3.2078]
[1736849404514,1.2182,3231.4,3230.6,3.2078]
[1736849404515,0.30956,3230.9,3230.6,3.2078]
[1736849404722,1.1595,3231.3,3230.6,3.2078]
[1736849404909,0.77389,3231.0,3230.2,3.2078]
[1736849405108,0.77389,3231.0,3230.2,3.51741]
[1736849405417,0.30954,3231.0,3230.9,40.8]
[1736849405617,9.57645652,3231.3,3230.9,40.8]
[1736849405618,0.30954,3231.1,3230.9,40.8]
[1736849405911,5.5894,3231.3,3230.9,40.8]
[1736849406211,0.30953,3231.1,3230.9,40.8]
[1736849406414,0.30953,3231.2,3230.9,41.10955]
[1736849406610,3.2078,3231.3,3230.9,41.10955]
[1736849406914,1.1469,3231.6,3231.0,3.2078]
[1736849406915,0.30949,3231.6,3231.0,3.2078]
[1736849407212,4.3836,3231.8,3231.0,4.4312]
[1736849407913,0.30949,3231.6,3231.3,0.30951]
[1736849408115,4.3836,3231.8,3231.0,4.4312]
[1736849408116,0.30947,3231.8,3231.5,0.30949]
[1736849408311,2.3555,3232.2,3231.5,0.30949]
[1736849408512,0.30944,3232.1,3231.8,0.30946]
[1736849408711,0.30944,3232.1,3231.5,2.94299722]
[1736849408905,3.2078,3232.4,3231.5,2.94299722]
[1736849409411,3.51721,3232.4,3231.7,0.7737]
[1736849409610,3.51721,3232.4,3231.8,0.30947]
[1736849409810,3.2078,3232.4,3232.1,0.30943]
[1736849410022,3.2078,3232.4,3231.8,1.2311]
[1736849410313,0.3094,3232.5,3232.3,0.30942]
[1736849410513,3.2078,3232.8,3231.9,3.2078]
[1736849410514,1.97341,3233.0,3231.9,3.2078]
[1736849410815,0.77341,3232.9,3232.3,0.30942]
[1736849411111,0.30941,3232.5,3232.2,0.30942]
[1736849411321,0.30941,3232.5,3232.4,40.8]
[1736849411714,4.4078,3233.0,3232.4,40.8]
[1736849411916,0.30938,3232.8,3232.4,40.8]
[1736849412121,1.2,3233.0,3232.4,40.8]
[1736849412311,4.4078,3233.0,3232.4,40.8]
[1736849412508,0.30938,3232.7,3232.4,41.1094]
[1736849412811,4.4078,3233.0,3232.4,41.1094]
[1736849412812,0.30939,3232.6,3232.4,40.8]
[1736849413213,0.30939,3232.7,3232.4,41.10941]
[1736849413516,0.30939,3232.6,3232.4,40.8]
[1736849413716,0.30938,3232.7,3232.4,41.10941]
[1736849413915,0.30939,3232.7,3232.4,41.10941]
[1736849414119,0.30939,3232.6,3232.4,40.8]
[1736849414517,1.2,3233.0,3232.4,40.8]
[1736849415119,0.3094,3232.6,3232.4,40.8]
[1736849415716,0.30938,3232.7,3232.4,41.10941]
[1736849415916,0.30938,3232.8,3232.4,40.8]
[1736849416219,0.30938,3232.7,3232.4,41.1094]
[1736849416608,0.30937,3232.9,3232.5,0.3094]
[1736849416813,0.30939,3232.6,3232.4,40.8]
[1736849417118,4.4078,3233.0,3232.4,40.8]
[1736849417322,0.30937,3232.8,3232.5,0.3094]
[1736849417521,0.30937,3232.8,3232.3,3.2078]
[1736849417723,4.4078,3233.0,3232.4,0.30941]
[1736849417724,0.30939,3232.7,3232.4,0.30941]
[1736849417919,0.30939,3232.7,3232.5,0.3094]
[1736849418116,4.4078,3233.0,3232.3,3.2078]
[1736849418316,0.30939,3232.7,3232.4,0.30941]
[1736849418511,0.30939,3232.7,3232.6,40.8]
[1736849418717,0.30937,3232.9,3232.6,0.30939]
[1736849418918,0.30937,3232.8,3232.5,0.30939]
[1736849419120,0.30938,3232.7,3232.4,0.30941]
[1736849419316,0.30938,3232.7,3232.4,0.3094]
[1736849419722,0.30936,3232.9,3232.6,40.8]
[1736849419921,1.2,3233.0,3232.6,40.8]
[1736849420323,1.2,3233.0,3232.6,43.2283417]
[1736849420518,1.2,3233.0,3232.6,40.8]
[1736849420726,0.30938,3232.8,3232.6,40.8]
[1736849420928,0.30937,3232.9,3232.7,0.30938]
[1736849421125,0.30937,3232.9,3232.6,41.10938]
[1736849421428,0.30938,3232.7,3232.6,40.8]
[1736849423027,0.30938,3232.8,3232.6,40.8]
[1736849423226,4.3783617,3233.3,3232.7,3.2078]
[1736849423227,1.1767,3233.3,3232.7,3.2078]
[1736849423430,0.30934,3233.2,3232.9,0.30935]
[1736849423731,1.48952,3233.4,3233.1,0.30934]
[1736849423933,1.1802,3233.4,3232.8,2.4283417]
[1736849424140,0.30937,3233.1,3232.9,1.47568]
[1736849424332,0.30934,3233.3,3232.9,1.1663]
[1736849424533,4.388,3233.4,3232.9,1.1663]
[1736849424734,1.1802,3233.4,3232.9,1.1663]
[1736849424935,0.30937,3233.0,3232.9,1.1663]
[1736849425829,0.30937,3233.0,3232.9,1.47568]
[1736849426029,0.30937,3233.0,3232.9,1.1663]
[1736849426235,4.388,3233.4,3232.9,1.1663]